Cogmind - Beta 16 @@@ ROGUE MODE // 2026.01.29 @ 15:07:43 Player: applejuice Result: Destroyed by SO-2FA(j) with Overtuned Pulse Rifle Performance ------------- Evolutions (0) 0 Regions Visited (3) 600 Robots Destroyed (23) 115 Value Destroyed (429) 429 Prototype IDs (1) 20 Alien Tech Used (0) 0 Bonus (0) 0 TOTAL SCORE: 1164 Bonus ------- None Cogmind --------- Core Integrity 0/250 Matter 295/300 Energy 26/100 System Corruption 0% Temperature Warm (170) Movement Core (100) Ox1 Location -8/Recycling Parts ------- > --- POWER (1) -------- (None) > --- PROPULSION (2) --- (None) > --- UTILITY (2) ------ Scrap Engine > --- WEAPON (2) ------- Medium Laser Medium Laser > --- INVENTORY (5) ---- High-capacity Matter Pod (154) Sensor Array Peak State ------------ > --- POWER ------------ Subdweller Power Source > --- PROPULSION ------- Compact Wheel > --- UTILITY ---------- Scrap Engine > --- WEAPON ----------- Medium Laser Beam Cannon > --- INVENTORY -------- High-capacity Matter Pod Sensor Array [Rating: 23] Favorites ----------- Power Light Ion Engine Engine Light Ion Engine Propulsion Compact Wheel Wheel Compact Wheel Utility Large Storage Unit Device Seismic Detector Storage Large Storage Unit Processor Signal Interpreter Weapon Light Assault Rifle Energy Gun Medium Laser Energy Cannon Beam Cannon Ballistic Gun Light Assault Rifle Special Weapon Mining Laser Build | -11 -10 -10 -8 ------- Run | Yrd Mat Sub Rec Slots Evolved . | . . . . Power . | . . . . Propulsion . | . . . . Utility . | . . . . Weapon . | . . . . Parts Attached 17 | 7 6 3 1 Power 3 | 1 1 1 . Engine 3 | 1 1 1 . Core . | . . . . Reactor . | . . . . Propulsion 3 | 2 . 1 . Treads . | . . . . Leg . | . . . . Wheel 3 | 2 . 1 . Hover . | . . . . Flight . | . . . . Utility 5 | 2 2 . 1 Device 2 | 1 . . 1 Storage 2 | 1 1 . . Processor 1 | . 1 . . Hackware . | . . . . Protection . | . . . . Artifact . | . . . . Weapon 6 | 2 3 1 . Energy Gun 2 | 1 1 . . Energy Cannon 1 | . . 1 . Ballistic Gun 2 | 1 1 . . Ballistic Cannon . | . . . . Launcher . | . . . . Special Weapon 1 | . 1 . . Impact Weapon . | . . . . Slashing Weapon . | . . . . Piercing Weapon . | . . . . Special Melee Weapon . | . . . . Unidentified Prototypes 1 | . . . 1 Parts Lost 10 | . 2 3 5 Power 3 | . 1 1 1 Propulsion 3 | . . 1 2 Utility 1 | . 1 . . Weapon 3 | . . 1 2 Highest Loss Streak 5 | . 2 3 5 To Critical Strikes . | . . . . Average Backups 8 | 1 6 11 9 Power . | . . . . Propulsion . | . . . . Utility 2 | . 1 3 3 Weapon 5 | . 4 7 6 Tool/Special . | . . . . Unused Backups 8 | . . . 8 Power . | . . . . Propulsion . | . . . . Utility 4 | . . . 4 Weapon 4 | . . . 4 Tool/Special . | . . . . Average Slot Usage (%) 96 | . 97 98 94 Engine 13 | . 14 12 13 Wheel 27 | . 28 27 26 Device 5 | . 11 . 1 Storage 13 | . 14 14 12 Processor 7 | . . 14 12 Energy Gun 4 | . 9 . 1 Energy Cannon 5 | . . 4 13 Ballistic Gun 16 | . 18 22 12 Peak Build Rating 23 | 7 8 9 23 Average Rating 8 | 5 7 7 10 On Entrance 6 | . 7 8 9 Avg Prop Armor Cover (%) . | . . . . Naked Turns . | . . . . Heaviest Build 29 | 13 28 29 29 Greatest Support 26 | 26 26 26 26 Greatest Overweight (x) 1 | . 1 1 1 Average Overweight (x) . | . . . . Largest Inventory Capacity 15 | 8 15 15 15 Average Capacity 13 | 7 14 15 14 Most Carried 13 | 3 13 12 11 Average Carried 8 | 1 6 11 10 Final Capacity 15 | 8 15 15 5 Final Carried 12 | 3 12 11 2 Class Distribution -------------------- 100% | Mutant Dominant Class ---------------- Mutant | -10/Materials Mutant | -10/Subcaves Mutant | -8/Recycling Resources | -11 -10 -10 -8 ----------- Run | Yrd Mat Sub Rec Matter Collected 736 | 303 236 57 140 Remotely . | . . . . Salvage Created 700 | 116 347 97 140 Parts 46 | 9 27 5 5 Haulers Intercepted 1 | . 1 . . Recyclers Shooed 2 | . 2 . . Parts Field Recycled . | . . . . Retrieved Matter . | . . . . Parts Self-Destructed 7 | . . 7 . Prevented . | . . . . Parts Restored . | . . . . Kills | -11 -10 -10 -8 ------- Run | Yrd Mat Sub Rec Combat Hostiles Destroyed 12 | . 7 3 2 Guns 11 | . 7 3 1 Classes Destroyed 10 | 2 6 1 1 Worker 2 | . 2 . . Builder 1 | . 1 . . Tunneler 3 | 3 . . . Hauler 1 | . 1 . . Recycler 1 | 1 . . . Turret 2 | . . 2 . Watcher 1 | . 1 . . Swarmer 6 | . 3 3 . Grunt 4 | . 4 . . Scrapper 2 | . . . 2 Best Kill Streak 4 | 4 4 3 1 Combat Bots Only 3 | . 3 3 1 Max Kills in Single Turn 1 | 1 1 1 1 Gunslinging . | . . . . Exploded . | . . . . Melee . | . . . . Uniques/NPCs Destroyed . | . . . . Combat | -11 -10 -10 -8 -------- Run | Yrd Mat Sub Rec Hostile Shots Fired 138 | . 41 69 28 Missed 48 | . 11 30 7 Hits 90 | . 30 39 21 Projectile 90 | . 30 39 21 Critical Strikes 1 | . . . 1 Damage Taken 1047 | . 321 267 459 Core 259 | . 47 62 150 Absorbed by Shields . | . . . . Core Remaining (%) 100 | 100 . . . Volleys Fired 92 | 11 46 23 12 Largest 2 | 2 2 2 2 Hottest 110 | 70 100 100 110 Shots Fired 168 | 22 85 41 20 Gun 147 | 22 81 27 17 Cannon 12 | . . 9 3 Launcher . | . . . . Special 9 | . 4 5 . Kinetic 103 | 11 65 27 . Thermal 65 | 11 20 14 20 Explosive . | . . . . Electromagnetic . | . . . . Robot Hit Streak 14 | 5 14 8 9 Robot Miss Streak 2 | 1 2 2 1 Penetration Max . | . . . . Secondary Targets 2 | . . 2 . Max Gunslinging Chain 1 | . . 1 . Shots Hit Robots 112 | 15 58 23 16 Core Hits 39 | 5 20 10 4 Critical Kills . | . . . . Critical Parts Destroyed 1 | . 1 . . Critical Strikes 3 | . 2 . 1 Burn 2 | . 1 . 1 Destroy 1 | . 1 . . Melee Attacks . | . . . . Impact . | . . . . Slashing . | . . . . Piercing . | . . . . Sneak Attacks . | . . . . Combat Hostiles . | . . . . Follow-up Attacks . | . . . . Damage Inflicted 1323 | 170 632 294 227 Guns 1138 | 170 632 171 165 Cannons 176 | . . 123 53 Explosions . | . . . . Melee . | . . . . Ramming 9 | . . . 9 Kinetic 738 | 84 483 171 . Thermal 576 | 86 149 123 218 Explosive . | . . . . Electromagnetic . | . . . . Impact . | . . . . Slashing . | . . . . Piercing . | . . . . Highest Corruption . | . . . . Average Corruption . | . . . . Corruption Purged . | . . . . Corruption Blocked . | . . . . Overload Shots . | . . . . Overflow Damage 1 | . . . 1 Projectiles . | . . . . Explosions . | . . . . Melee 1 | . . . 1 Knockbacks . | . . . . Impact . | . . . . Kinetic . | . . . . Secondary . | . . . . Self-Inflicted Damage 4 | . . . 4 Shots . | . . . . Rammed 2 | . . . 2 Targets Rammed 2 | . . . 2 Kicked . | . . . . Crushed . | . . . . Highest Temperature 207 | 72 60 15 207 Average Temperature 45 | 30 19 9 131 Received Heat Transfer 601 | . 132 192 277 Siege Activations . | . . . . Martial Activations . | . . . . Shielding Activations . | . . . . Robots Disrupted . | . . . . Combat Hostiles . | . . . . Robots Corrupted 1 | . . . 1 Combat Hostiles 1 | . . . 1 Parts Fried 3 | . . . 3 Impact Corruptions 1 | . . . 1 Robots Melted . | . . . . Combat Hostiles . | . . . . Parts Melted 1 | . . . 1 Heat Transferred 1486 | 259 518 259 450 Parts Sabotaged . | . . . . Parts Stolen . | . . . . Parts Stripped . | . . . . Power Chain Reactions . | . . . . Alert | -11 -10 -10 -8 ------- Run | Yrd Mat Sub Rec Maximum Alert Level . | . . . . Low Security (%) 100 | 100 100 . 100 Level 1 . | . . . . Level 2 . | . . . . Level 3 . | . . . . Level 4 . | . . . . Level 5 . | . . . . High Security . | . . . . Max Security . | . . . . Peak Influence 98 | 10 98 . 52 Initial 52 | . . . 52 Average 18 | 1 30 . 7 Influence Increases 484 | 20 262 190 12 Destroy 0b10 Robot/C 240 | . 140 100 . Destroy 0b10 Robot/NC 45 | 20 25 . . Destroy Leader 24 | . 24 . . Successful Hack 38 | . 26 . 12 Disable Machine 15 | . 15 . . Destroy Structure 2 | . 2 . . Lose Combat Pursuer 120 | . 30 90 . Influence Decreases 484 | 20 172 170 122 Entered New Map 102 | . . 44 58 Time Decay 332 | 20 152 96 64 Lost Part 50 | . 20 30 . Squads Dispatched 1 | . 1 . . Investigation . | . . . . Extermination . | . . . . Reinforcement 1 | . 1 . . Assault . | . . . . Garrison . | . . . . Intercept . | . . . . Searches Triggered . | . . . . Construction Impeded . | . . . . Haulers Reinforced . | . . . . Active Scanning Responses . | . . . . Cargo Convoy Interrupts . | . . . . Stealth | -11 -10 -10 -8 --------- Run | Yrd Mat Sub Rec Distress Signals . | . . . . Communications Jammed . | . . . . Distress Signals . | . . . . Times Spotted 24 | . 13 8 3 Peak Tracking Total 6 | . 3 6 3 Tactical Retreats 4 | . 2 2 . Traps | -11 -10 -10 -8 ------- Run | Yrd Mat Sub Rec Traps Triggered . | . . . . Indirectly . | . . . . Trap Hack Attempts . | . . . . Triggered . | . . . . Disarmed . | . . . . Reprogrammed . | . . . . Reused . | . . . . Traps Extracted . | . . . . Installed . | . . . . Triggered . | . . . . Machines | -11 -10 -10 -8 ---------- Run | Yrd Mat Sub Rec Machines Disabled 1 | . 1 . . Max in Single Turn 1 | . 1 . . Machines Repaired . | . . . . Machines Dismantled . | . . . . Machines Sabotaged . | . . . . Overloaded Fab Kills . | . . . . Hacking | -11 -10 -10 -8 --------- Run | Yrd Mat Sub Rec Machines Accessed 11 | . 5 . 6 Terminals 8 | . 5 . 3 Fabricators . | . . . . Repair Stations . | . . . . Recycling Units 1 | . . . 1 Scanalyzers . | . . . . Garrison Access . | . . . . Total Hacks 48 | . 12 . 36 Successful 36 | . 6 . 30 Failed 12 | . 6 . 6 Catastrophic 3 | . 2 . 1 Database Lockouts . | . . . . Manual 18 | . 12 . 6 Terminals 21 | . 12 . 9 Fabricators . | . . . . Repair Stations . | . . . . Recycling Units 1 | . . . 1 Scanalyzers . | . . . . Garrison Access . | . . . . Terminal Hacks 31 | . 3 . 28 Record 24 | . . . 24 Part Schematic 1 | . 1 . . Branch Access Points 2 | . 1 . 1 Terminal Index 2 | . 1 . 1 Release Object 2 | . . . 2 Fabricator Hacks . | . . . . Repair Station Hacks . | . . . . Recycling Unit Hacks . | . . . . Scanalyzer . | . . . . Garrison Access Hacks . | . . . . Unauthorized Hacks 5 | . 3 . 2 Terminals 5 | . 3 . 2 Botnet 5 | . 3 . 2 Fabricators . | . . . . Repair Stations . | . . . . Recycling Units . | . . . . Scanalyzers . | . . . . Garrison Access . | . . . . Data Cores Recovered . | . . . . Used . | . . . . Hacking Detections 8 | . 4 . 4 Full Trace Events . | . . . . Feedback Events . | . . . . Feedback Blocked . | . . . . Robot Schematics Acquired . | . . . . Robots Built . | . . . . Authchips . | . . . . Time . | . . . . Total Robot Build Rating . | . . . . Part Schematics Acquired 1 | . 1 . . Parts Built . | . . . . Authchips . | . . . . Time . | . . . . Total Part Build Rating . | . . . . Part Studies Acquired . | . . . . Parts Repaired . | . . . . Time . | . . . . Parts Recycled . | . . . . Recycled Matter . | . . . . Retrieved Matter . | . . . . Retrieved Components . | . . . . Parts Scanalyzed . | . . . . Part Schematics Acquired . | . . . . Parts Damaged . | . . . . Bothacking | -11 -10 -10 -8 ------------ Run | Yrd Mat Sub Rec Used RIF Installer . | . . . . Robots Hacked . | . . . . Non-combat . | . . . . Combat . | . . . . Robot Hacks Applied . | . . . . Relay Couplers Released . | . . . . Fabnet Peak Effective % . | . . . . Robots Rewired . | . . . . Allies Hacked . | . . . . Hacks Repelled . | . . . . Allies | -11 -10 -10 -8 -------- Run | Yrd Mat Sub Rec Total Allies . | . . . . Largest Group . | . . . . Highest-Rated Group . | . . . . Highest-Rated Ally . | . . . . Total Orders . | . . . . Ally Attacks . | . . . . Total Damage . | . . . . Kills . | . . . . Allies Corrupted . | . . . . Allies Melted . | . . . . Intel | -11 -10 -10 -8 ------- Run | Yrd Mat Sub Rec Active Infowar (turns) 417 | 5 412 . . Seismic 417 | 5 412 . . Robot Analysis Total . | . . . . Derelict Logs Recovered . | . . . . Drone Launches . | . . . . Drone Recoveries . | . . . . Exploration | -11 -10 -10 -8 ------------- Run | Yrd Mat Sub Rec Turns Passed 1282 | 93 515 233 441 Spaces Moved 877 | 53 299 158 367 Core 2 | 2 . . . Treads . | . . . . Legs . | . . . . Wheels 875 | 51 299 158 367 Hover . | . . . . Flight . | . . . . Fastest Speed 50 | 50 90 90 100 Average Speed 100 | 89 100 93 105 Slowest Speed 115 | 100 105 115 115 Overloaded Moves . | . . . . Propulsion Burnouts . | . . . . Robots Hopped . | . . . . Potential Cave-ins . | . . . . Cave-ins Triggered . | . . . . Exploration Rate (%) 28 | 3 37 11 62 Regions Visited 3 Branch Regions 2 Pre-discovered Areas . | . . . . Known Exits Taken 2 | . 1 1 . Unknown Exits Taken 1 | 1 . . . Scrap Searched . | . . . . Spaces Dug 1 | . 1 . . Terrain Destroyed 1 | . 1 . . Melee . | . . . . Projectile 1 | . 1 . . AOE . | . . . . Terrain Rammed . | . . . . Walls Destroyed . | . . . . Machines Disabled . | . . . . Actions | -11 -10 -10 -8 --------- Run | Yrd Mat Sub Rec Total 1096 | 73 422 195 406 Wait 83 | . 59 9 15 Move 874 | 52 298 157 367 Hop . | . . . . Pick Up 16 | 3 11 1 1 Fast Attach 9 | 7 . 1 1 Attach 6 | . 2 2 2 Detach 1 | . . . 1 Swap 7 | . 5 2 . Drop 6 | . 1 . 5 Fire 92 | 11 46 23 12 Melee . | . . . . Ram 2 | . . . 2 Kick . | . . . . Crush . | . . . . Escape Stasis . | . . . . Rewire . | . . . . Trap . | . . . . Miscellaneous . | . . . . Route ------- -11/Scrapyard -10/Materials (discovered 4 exits: *Mat x2 / *Min / *Sub) -10/Subcaves -8/Recycling (discovered 1 exit: *Fac) History --------- Turn | Location | Event 30 | -11/Scrapyard | Discovered new exit (range 15) 94 | -11/Scrapyard | Entered Materials 105 | -10/Materials | Discovered new exit (range 15) 110 | -10/Materials | Identified exit to Mines 201 | -10/Materials | Discovered new exit (range 13) 257 | -10/Materials | Discovered new exit (range 15) 302 | -10/Materials | Build established: Mutant 599 | -10/Materials | Discovered new exit (range 11) 600 | -10/Materials | Identified exit to Materials 608 | -10/Materials | Identified exit to Subcaves 609 | -10/Materials | Entered Subcaves 610 | -10/Subcaves | Approached by a straggling Scientist 788 | -10/Subcaves | Discovered new exit (range 15) 820 | -10/Subcaves | Identified exit to Recycling 823 | -10/Subcaves | Lost 3 parts (1p1n1w) 842 | -10/Subcaves | Entered Recycling 971 | -8/Recycling | Discovered new exit (range 14) 984 | -8/Recycling | Identified exit to Factory 1179 | -8/Recycling | Scanned before Scraplab entrance 1194 | -8/Recycling | Entered Scraplab 1207 | -8/Recycling | Discovered new exit (range 3) 1208 | -8/Recycling | Identified exit to Scraptown 1224 | -8/Recycling | Angered Scraplab inhabitants 1225 | -8/Recycling | Found Prototype Device 1230 | -8/Recycling | Core integrity fell below 50% 1241 | -8/Recycling | Identified Scrap Engine 1278 | -8/Recycling | Core integrity fell below 20% 1283 | -8/Recycling | Destroyed by SO-2FA(j) with Overtuned Pulse Rifle Last Messages --------------- 01235_ Lgt. Deuterium Engine fried. 01235_ Acquired 70 matter. Prototype Device integrity failing. 01240_ Discarded Signal Interpreter. 01241_ Dropped Lrg. Storage Unit. 01241_ Identified Scrap Engine. 01244_ 5W-ET2(j) cannibalizes Corrupted Ovr. Titanium Leg to repair Ovr. Titanium Leg. 01247_ 5W-ET2(j) heat spikes uncontrollably. 01251_ Beam Cannon destroyed. 01252_ 5W-ET2(j) suffers critical hit (Burn). 01254_ Broken Sub. Power Source destroyed. 01258_ Mak. Salvage Targeting Computer melted. 01258_ 5W-ET2(j) destroyed. 01260_ Acquired 70 matter. 01262_ Acquired Med. Laser. 01276_ SO-2FA(j) cannibalizes Particle Gun to repair Ovr. Pulse Rifle. 01279_ Critical hit (Burn: +50). 01280_ Com. Wheel destroyed. Map ----- +----------------------------------------------------+ | | | | | | | | | | | | | | | | | | | | | | | | | | | | | | | | | | | | | | | | | | | | | | | ???????????????############??????????????????????? | | ???????????????#"""""""#!=#??????????????????????? | | ???????????????# " X ##@#??????????????????????? | | ?????????####### j #??????????????????????? | | ????????## + | !=!#??????????????????????? | | ????????# ##### c][ ["#??????????????????????? | | ????????## #???# ""#??????????????????????? | | ?????????# #???#"& "& X ""#??????????????????????? | | ?????????# #???#"""""""" #??????????????????????? | | ??????#####################??????????????????????? | | ??????# #??????????????????????????????????? | | ??????# #??????????????????????????????????? | | ??????# #??????????????????????############# | | ??????# #??????????????????????# | | ??????####+####??????????????????????? | | ?????????# #?????#############?????????? ? | | ?????????# #?????# #???????????? ??? | | ?????????# #?????# ###############+##### | | ?????#####+#####?# # | | ?????# #?# + < | | ?????# ## # | | ?????# ### ### ########+##### | | ?????# #?# #?# #????? ??? | | ?????# ### #?# #???# ? | | ?????# ## #?# #???# # | | ?????# ### #?# #???# # | | ?????# #?# #?# #???# # | +----------------------------------------------------+ Best States ------------- Heat Dissipation 25 Energy Generation 15 Energy Capacity 200 Matter Stores 300 Matter Capacity 300 Sight Range 16 Terrain Scan Density 10 Evasion (%) 42 Item Schematics ----------------- Hcp. Storage Unit | -10/Materials | Hacked Robot Schematics ------------------ None Fabricated ------------ Nothing Repaired ---------- Nothing Studied --------- None Alien Tech Used ----------------- None Achievements -------------- You May Approach The Wall Challenges ------------ None Game ------ Seed TerrainThrowingDerivative Manual? 0 Play Time 00:19:28 Cumulative 41.1 hours Start 2026.01.29 @ 14:47:37 End 2026.01.29 @ 15:07:43 Sessions 1 Manual Loads 0 Difficulty Rogue Special Mode None Game No. 49 Rogue 49 Adventurer 0 Explorer 0 Win Type - Total 0 Types 0/0/0/0/0/0/0/0/0/0 Lore% 35 Gallery% 35 Achievement% 28 Wizard Run 0 Options --------- Layout 1 ASCII 0 Keyboard 1 Movement Numpad Keybinds 0 Fullscreen 1 Font 48/Smallcaps Map View 50x35 Zoom Use 0% Tactical HUD 1 Map Filters NONE Filters NONE Steam 1 RUN: 5c5f8e5d-05fd-4a6a-9353-acd20468dbd4